bitfinex/quotes_SOLUSD_20250307
["timestamp","ask_amount","ask_price","bid_price","bid_amount"]
[1741332902557,4.29902261,144.04,144.03,0.033]
[1741332902872,4.29902261,144.04,144.03,22.13649424]
[1741332903562,28.19159293,144.1,144.03,22.13649424]
[1741332903757,28.19159293,144.1,144.06,21.96133267]
[1741332904083,28.19159293,144.1,144.07,21.96133267]
[1741332904387,6.9396,144.1,144.06,22.10349424]
[1741332904682,6.9396,144.1,144.06,21.96133267]
[1741332905176,10.87549232,144.13,144.09,21.96133267]
[1741332905490,10.87549232,144.13,144.12,22.10349424]
[1741332905683,0.03,144.13,144.12,22.10349424]
[1741332906181,10.84549232,144.19,144.12,214.15232691]
[1741332906380,10.84549232,144.19,144.18,22.10349424]
[1741332906678,10.84549232,144.19,144.18,28.36349424]
[1741332906862,10.84549232,144.19,144.18,183.86349424]
[1741332907868,0.03,144.2,144.19,0.14216157]
[1741332908068,0.03,144.2,144.19,22.10349424]
[1741332908683,0.03,144.2,144.19,334.10349424]
[1741332909465,25.29562711,144.27,144.19,334.10349424]
[1741332909962,25.29562711,144.27,144.22,21.96133267]
[1741332912786,0.03,144.28,144.26,21.96133267]
[1741332912981,0.03,144.28,144.27,22.10349424]
[1741332913665,0.03,144.28,144.27,133.09622691]
[1741332914176,19.00484823,144.34,144.28,1.76056157]
[1741332914369,19.00484823,144.34,144.33,22.10349424]
[1741332914575,0.03,144.34,144.33,22.10349424]
[1741332916082,0.03,144.34,144.32,21.96133267]
[1741332916479,0.03,144.34,144.33,0.14216157]
[1741332916988,0.03,144.34,144.33,22.10349424]
[1741332919085,0.03,144.34,144.33,50.99332691]
[1741332919292,0.03,144.34,144.33,199.56482691]
[1741332919513,0.03,144.34,144.33,177.60349424]
[1741332922299,0.03,144.34,144.33,155.64216157]
[1741332923878,0.03,144.34,144.33,82.24216157]
[1741332924194,0.03,144.34,144.33,82.1]
[1741332925374,0.03,144.34,144.32,21.96133267]
[1741332925570,0.03,144.34,144.33,0.14216157]
[1741332925774,0.03,144.34,144.33,22.10349424]
[1741332927199,0.03,144.34,144.3,632.62]
[1741332927502,0.03,144.34,144.33,0.14216157]
[1741332927881,0.03,144.34,144.33,22.10349424]
[1741332928282,0.03,144.34,144.33,104.20349424]
[1741332931287,0.03,144.34,144.33,416.20349424]
[1741332931487,0.03,144.34,144.33,423.13199424]
[1741332931891,0.03,144.34,144.33,104.06133267]
[1741332932192,0.03,144.34,144.33,104.20349424]
[1741332933176,0.03,144.34,144.33,82.24216157]
[1741332934285,0.03,144.34,144.27,82.1]
[1741332934486,0.03,144.34,144.27,104.06133267]
[1741332934694,0.03,144.34,144.29,21.96133267]
[1741332934914,0.03,144.34,144.31,21.96133267]
[1741332935290,0.03,144.34,144.3,22.10349424]
[1741332937002,0.03,144.34,144.3,0.14216157]
[1741332937203,54.74722994,144.34,144.3,0.14216157]
[1741332937413,18.67964886,144.34,144.3,22.10349424]
[1741332938477,6.9285,144.33,144.3,0.14216157]
[1741332938681,6.9285,144.33,144.3,22.10349424]
[1741332939981,18.67964886,144.34,144.3,22.10349424]
[1741332940190,18.67964886,144.34,144.32,21.96133267]
[1741332940191,0.03,144.34,144.32,21.96133267]
[1741332941486,0.03,144.34,144.33,21.96133267]
[1741332942383,0.03,144.34,144.32,21.96133267]
[1741332942994,0.03,144.34,144.32,0.14216157]
[1741332943588,18.67964886,144.34,144.3,21.96133267]
[1741332943796,18.67964886,144.34,144.28,186.96133267]
[1741332944189,6.9285,144.33,144.29,0.14216157]
[1741332945300,6.9285,144.33,144.28,186.96133267]
[1741332945493,6.9285,144.33,144.29,21.96133267]
[1741332946203,18.67964886,144.34,144.3,21.96133267]
[1741332946794,25.60764886,144.34,144.3,21.96133267]
[1741332947308,25.60764886,144.34,144.3,333.96133267]
[1741332947895,25.60764886,144.34,144.29,22.10349424]
[1741332950307,0.03,144.34,144.31,0.14216157]
[1741332950500,0.03,144.34,144.32,21.96133267]
[1741332950902,0.03,144.34,144.32,333.96133267]
[1741332952113,0.03,144.34,144.32,312.0]
[1741332952311,0.03,144.34,144.3,0.14216157]
[1741332953008,0.03,144.34,144.3,22.10349424]
[1741332953523,0.03,144.34,144.33,22.10349424]
[1741332954017,0.03,144.34,144.33,29.03199424]
[1741332954812,0.03,144.34,144.33,22.10349424]
[1741332955017,0.03,144.34,144.33,0.14216157]
[1741332955415,0.03,144.34,144.33,312.14216157]
[1741332955619,0.03,144.34,144.32,22.10349424]
[1741332956220,0.03,144.34,144.33,21.96133267]
[1741332956922,0.03,144.34,144.33,22.10349424]
[1741332957901,0.03,144.34,144.33,104.20349424]
[1741332958312,0.03,144.34,144.33,111.13199424]
[1741332958519,0.03,144.34,144.33,423.13199424]
[1741332961409,0.03,144.34,144.33,445.09332691]
[1741332961999,0.03,144.34,144.33,423.13199424]
[1741332962607,0.03,144.34,144.33,414.43199424]
[1741332964129,0.03,144.34,144.33,496.53199424]
[1741332964326,0.03,144.34,144.33,474.57066157]
[1741332964627,0.03,144.34,144.33,496.53199424]
[1741332966523,0.03,144.35,144.34,0.28432314]
[1741332966727,0.03,144.39,144.36,0.28432314]
[1741332966937,0.03,144.39,144.38,22.24565581]
[1741332967534,0.03,144.41,144.38,22.24565581]
[1741332967535,10.050597,144.43,144.38,22.10349424]
[1741332967733,10.050597,144.43,144.38,104.06133267]
[1741332968043,10.050597,144.43,144.39,0.14216157]
[1741332968247,16.974497,144.43,144.39,0.14216157]
[1741332969525,6.9239,144.43,144.39,0.14216157]
[1741332969730,18.64964886,144.42,144.36,104.06133267]
[1741332969919,18.64964886,144.42,144.37,0.14216157]
[1741332970433,8.4934,144.43,144.38,21.96133267]
[1741332970614,8.4934,144.43,144.39,0.14216157]
[1741332970814,18.64964886,144.42,144.37,0.14216157]
[1741332971334,6.9247,144.41,144.37,0.14216157]
[1741332971706,18.64964886,144.4,144.32,269.04133267]
[1741332971922,18.64964886,144.36,144.32,164.98]
[1741332972508,1.547,144.37,144.33,0.14216157]
[1741332972724,1.547,144.37,144.33,312.14216157]
[1741332972921,30.4965,144.41,144.36,0.14216157]
[1741332972922,18.64964886,144.4,144.36,0.14216157]
[1741332973126,18.64964886,144.4,144.36,22.10349424]
[1741332973535,25.57484886,144.4,144.36,22.10349424]
[1741332973705,25.57484886,144.4,144.36,0.14216157]
[1741332973912,25.57484886,144.4,144.34,0.14216157]
[1741332974113,6.9252,144.4,144.36,0.14216157]
[1741332974411,6.1232,144.42,144.38,22.10349424]
[1741332974620,18.64964886,144.43,144.39,22.10349424]
[1741332975435,25.57334886,144.43,144.39,22.10349424]
[1741332976022,25.57334886,144.43,144.39,0.14216157]
[1741332976615,0.14216157,144.42,144.36,104.06133267]
[1741332976815,25.57334886,144.43,144.37,21.96133267]
[1741332977020,25.57334886,144.43,144.38,0.14216157]
[1741332977422,25.60334886,144.43,144.38,0.14216157]
[1741332978940,0.03,144.43,144.42,21.96133267]
[1741332979144,0.03,144.43,144.42,104.20349424]
[1741332981121,0.03,144.43,144.42,111.12769424]
[1741332981828,0.03,144.43,144.42,423.12769424]
[1741332982454,0.03,144.43,144.42,416.20349424]
[1741332983219,0.03,144.43,144.42,423.12769424]
[1741332984148,0.03,144.43,144.42,184.52769424]
[1741332984351,0.03,144.45,144.43,0.14216157]
[1741332984536,0.03,144.45,144.44,22.10349424]
[1741332984847,0.03,144.45,144.44,342.52349424]
[1741332985650,0.03,144.45,144.44,349.44669424]
[1741332986551,0.0001,144.45,144.44,351.24465581]
[1741332986851,0.0001,144.47,144.46,20.28432314]
[1741332987144,0.0001,144.47,144.46,533.15978398]
[1741332987345,0.0001,144.47,144.46,531.70698848]
[1741332987846,0.0001,144.47,144.46,550.35663734]
[1741332988028,0.03,144.49,144.47,0.28432314]
[1741332988219,0.03,144.49,144.48,51.75749951]
[1741332988419,0.03,144.56,144.52,0.14216157]
[1741332988624,0.03,144.56,144.53,29.02239424]
[1741332990745,0.03,144.56,144.53,184.52239424]
[1741332991245,0.03,144.56,144.53,496.66455581]
[1741332991445,0.03,144.56,144.53,537.27553734]
[1741332992245,0.03,144.56,144.53,539.27553734]
[1741332993147,0.03,144.56,144.53,501.448872]
[1741332993353,0.03,144.56,144.53,545.37153734]
[1741332993654,0.03,144.56,144.53,523.41020467]
[1741332993948,0.03,144.56,144.53,545.37153734]
[1741332995543,0.03,144.56,144.53,504.61839424]
[1741332995740,0.03,144.56,144.53,504.76055581]
[1741332996059,0.03,144.56,144.53,504.61839424]
[1741332996245,0.03,144.56,144.53,504.76055581]
[1741332996633,0.03,144.56,144.53,545.37153734]
[1741332996834,0.03,144.56,144.55,64.20698848]
[1741332997052,0.03,144.56,144.55,384.46698848]
[1741332997439,0.0001,144.58,144.57,20.79181043]
[1741332997735,0.01,144.6,144.59,20.28432314]
[1741332997940,0.01,144.6,144.59,22.24565581]
[1741332998840,0.01,144.6,144.59,47.81140467]
[1741332999147,0.01,144.6,144.59,69.77273734]
[1741332999456,0.03,144.62,144.61,38.933972]
[1741332999650,0.03,144.62,144.61,84.30789148]
[1741333000039,0.03,144.62,144.61,396.30789148]
[1741333000237,0.03,144.62,144.61,394.85663734]
[1741333000438,0.03,144.62,144.61,402.92213734]
[1741333001052,0.03,144.62,144.61,409.83723734]
[1741333002055,0.03,144.62,144.61,391.18758848]
[1741333002556,0.03,144.62,144.61,367.11643267]
[1741333002745,0.03,144.62,144.61,389.21992691]
[1741333003059,0.03,144.62,144.61,367.25859424]
[1741333003260,0.03,144.62,144.61,389.21992691]
[1741333003560,18.64964886,144.72,144.68,0.14216157]
[1741333003755,18.64964886,144.72,144.68,22.10349424]
[1741333003973,18.64964886,144.72,144.68,0.14216157]
[1741333004466,18.64964886,144.73,144.69,22.10349424]
[1741333004667,8.0416,144.74,144.71,0.14216157]
[1741333005056,0.03,144.75,144.73,22.10349424]
[1741333005372,0.03,144.75,144.74,22.10349424]
[1741333006661,0.03,144.75,144.74,373.8511732]
[1741333007357,0.03,144.75,144.74,0.14216157]
[1741333007760,0.03,144.75,144.72,34.80011163]
[1741333008146,0.03,144.75,144.73,0.14216157]
[1741333008854,8.0579,144.75,144.69,41.12011163]
[1741333009043,18.64964886,144.74,144.67,34.80011163]
[1741333009252,18.64964886,144.74,144.68,0.14216157]
[1741333009583,8.0579,144.75,144.7,34.80011163]
[1741333009773,8.0579,144.75,144.72,34.9422732]
[1741333010153,8.0579,144.75,144.74,0.14216157]
[1741333010667,8.0579,144.75,144.73,0.14216157]
[1741333011448,0.03,144.75,144.74,34.9422732]
[1741333013056,0.03,144.75,144.72,34.80011163]
[1741333013256,0.03,144.75,144.73,34.9422732]
[1741333013457,0.03,144.75,144.74,34.9422732]
[1741333014669,0.03,144.75,144.74,346.9422732]
[1741333016370,0.03,144.75,144.74,34.9422732]
[1741333016749,0.03,144.75,144.74,0.14216157]
[1741333017050,0.03,144.75,144.72,34.80011163]
[1741333017650,0.03,144.75,144.73,0.14216157]
[1741333019169,0.03,144.75,144.72,0.14216157]
[1741333019549,0.03,144.75,144.73,0.14216157]
[1741333020561,6.2951,144.75,144.7,0.14216157]
[1741333020751,49.2216844,144.74,144.7,0.14216157]
[1741333021146,42.83084886,144.74,144.69,34.80011163]
[1741333021463,42.83084886,144.74,144.68,34.80011163]
[1741333021662,42.83084886,144.74,144.69,0.14216157]
[1741333021861,42.83084886,144.74,144.67,34.80011163]
[1741333022051,77.37554886,144.74,144.67,34.80011163]
[1741333022651,42.83084886,144.74,144.67,34.80011163]
[1741333022856,42.83084886,144.74,144.66,199.46011163]
[1741333023069,42.83084886,144.74,144.67,0.14216157]
[1741333023385,18.64964886,144.7,144.66,164.66]
[1741333025187,6.9089,144.74,144.68,34.80011163]
[1741333025493,20.29224886,144.76,144.72,34.80011163]
[1741333025782,13.2036,144.75,144.71,346.9422732]
[1741333025957,18.64964886,144.74,144.71,0.14216157]
[1741333026977,6.2951,144.75,144.72,34.9422732]
[1741333028086,18.64964886,144.74,144.7,34.80011163]
[1741333028290,18.64964886,144.74,144.7,0.14216157]
[1741333028465,18.64964886,144.74,144.71,34.80011163]
[1741333028876,25.55854886,144.74,144.7,34.9422732]
[1741333029264,18.64964886,144.74,144.7,34.9422732]
[1741333031302,18.64964886,144.74,144.71,34.80011163]
[1741333031999,6.9089,144.74,144.71,34.80011163]
[1741333032772,18.64964886,144.74,144.71,34.80011163]
[1741333033305,6.9089,144.74,144.71,34.80011163]
[1741333034097,0.03,144.75,144.72,34.9422732]
[1741333034466,0.03,144.75,144.72,0.14216157]
[1741333034769,0.03,144.75,144.72,21.91043277]
[1741333035098,6.9385,144.75,144.72,0.14216157]
[1741333037266,6.9385,144.75,144.69,6.911]
[1741333037267,18.64964886,144.74,144.7,0.14216157]
[1741333037880,18.64964886,144.74,144.7,21.91043277]
[1741333038098,18.64964886,144.74,144.72,0.033]
[1741333039087,6.9385,144.75,144.72,0.17516157]
[1741333040106,6.9385,144.75,144.72,0.033]
[1741333042402,18.64964886,144.74,144.72,0.033]
[1741333043184,6.9089,144.74,144.72,0.033]
[1741333046094,18.64964886,144.73,144.66,82.133]
[1741333046270,18.64964886,144.73,144.67,0.14216157]
[1741333047085,18.64964886,144.71,144.66,0.033]
[1741333047597,0.14216157,144.7,144.66,0.033]
[1741333048107,20.30384886,144.69,144.66,0.033]
[1741333048302,0.14216157,144.68,144.66,0.033]
[1741333048503,18.64964886,144.67,144.66,0.033]
[1741333049209,25.56184886,144.67,144.66,0.033]
[1741333049691,25.70401043,144.67,144.66,0.033]
[1741333050096,107.70401043,144.67,144.66,0.033]
[1741333051981,107.56184886,144.67,144.66,0.033]
[1741333052176,107.70401043,144.67,144.66,0.033]
[1741333054118,0.14216157,144.66,144.62,0.033]
[1741333054405,0.14216157,144.66,144.59,6.9159]
[1741333054406,113.05724886,144.65,144.56,82.1]
[1741333054617,18.79181043,144.63,144.56,103.8682712]
[1741333054823,18.79181043,144.63,144.57,21.8012712]
[1741333055015,18.79181043,144.63,144.57,333.8012712]
[1741333055403,6.9146,144.62,144.57,333.8012712]
[1741333055713,18.64964886,144.62,144.59,21.91043277]
[1741333055885,82.0,144.64,144.6,21.7682712]
[1741333056209,18.64964886,144.63,144.61,21.7682712]
[1741333056712,18.64964886,144.63,144.6,21.7682712]
[1741333056888,18.64964886,144.63,144.59,21.91043277]
[1741333057484,6.9146,144.62,144.59,21.91043277]
[1741333057689,6.9146,144.62,144.59,0.14216157]
[1741333058119,18.64964886,144.64,144.59,0.14216157]
[1741333058332,18.64964886,144.62,144.59,21.91043277]
[1741333058830,18.64964886,144.62,144.6,21.7682712]
[1741333059027,18.64964886,144.62,144.6,333.7682712]
[1741333059316,18.64964886,144.62,144.6,312.0]
[1741333059515,6.26,144.65,144.6,312.0]
[1741333059516,25.56334886,144.64,144.6,312.0]
[1741333060394,18.64964886,144.63,144.58,246.66]
[1741333061314,25.56374886,144.63,144.58,246.66]
[1741333062229,45.97387244,144.63,144.58,82.1]
[1741333062733,42.84914886,144.63,144.57,0.17516157]
[1741333064815,42.84914886,144.63,144.58,21.91043277]
[1741333064816,25.56374886,144.63,144.58,21.91043277]
[1741333066300,25.56374886,144.63,144.57,21.94343277]
[1741333066922,25.56354886,144.64,144.59,0.14216157]
[1741333067112,25.56354886,144.64,144.6,21.7682712]
[1741333067303,25.56184886,144.67,144.61,0.14216157]
[1741333067504,25.56184886,144.67,144.61,28.82533277]
[1741333067706,25.56184886,144.67,144.61,21.91043277]
[1741333068006,25.56184886,144.67,144.61,312.14216157]
[1741333068899,25.56184886,144.67,144.61,340.82553277]
[1741333070038,95.9005,144.69,144.62,21.7682712]
[1741333070039,102.8122,144.69,144.62,21.7682712]
[1741333070235,18.64964886,144.68,144.63,0.14216157]
[1741333072405,25.56174886,144.68,144.63,0.14216157]
[1741333072798,25.56174886,144.68,144.62,0.14216157]
[1741333073629,25.59174886,144.68,144.62,0.14216157]
[1741333075025,42.87124886,144.68,144.62,0.14216157]
[1741333076027,0.03,144.68,144.65,21.7682712]
[1741333076321,6.9421,144.68,144.65,312.0]
[1741333076837,25.59174886,144.68,144.65,312.0]
[1741333077006,18.64964886,144.67,144.62,155.5]
[1741333077328,18.64964886,144.67,144.62,82.1]
[1741333078928,6.9127,144.66,144.61,0.14216157]
[1741333079914,6.9127,144.66,144.61,312.14216157]
[1741333081022,18.79181043,144.65,144.59,246.78]
[1741333081431,18.79181043,144.65,144.58,0.033]
[1741333081628,18.64964886,144.61,144.58,0.033]
[1741333081925,25.03181043,144.63,144.58,0.033]
[1741333082733,18.64964886,144.61,144.58,0.033]
[1741333084414,0.14216157,144.6,144.58,0.033]
[1741333084933,25.56574886,144.59,144.58,0.033]
[1741333085340,25.70791043,144.59,144.58,0.033]
[1741333085511,18.64964886,144.58,144.57,0.033]
[1741333085830,24.88964886,144.58,144.57,0.033]
[1741333086811,31.80614886,144.58,144.57,0.033]
[1741333087025,31.94831043,144.58,144.57,0.0001]
[1741333087919,113.94831043,144.58,144.57,0.0001]
[1741333088116,115.47961043,144.58,144.57,0.0001]
[1741333088318,0.14216157,144.53,144.52,0.033]
[1741333088516,25.03181043,144.53,144.52,0.033]
[1741333089338,31.95071043,144.53,144.52,0.033]
[1741333091819,33.54601043,144.53,144.52,0.033]
[1741333093049,36.99914457,144.53,144.52,0.033]
[1741333096419,18.64964886,144.53,144.52,0.033]
[1741333096929,25.71071043,144.53,144.52,0.033]
[1741333103544,18.64964886,144.53,144.52,0.033]
[1741333103743,25.71071043,144.53,144.52,0.033]
[1741333104529,18.64964886,144.53,144.52,0.033]
[1741333105756,25.56854886,144.53,144.52,0.033]
[1741333106351,18.64964886,144.53,144.52,0.033]
[1741333106937,25.71071043,144.53,144.52,0.033]
[1741333108536,31.95071043,144.53,144.52,0.033]
[1741333108935,18.79181043,144.52,144.49,0.033]
[1741333109145,38.64964886,144.5,144.49,0.033]
[1741333109643,38.79181043,144.5,144.49,0.033]
[1741333110032,44.46837951,144.5,144.49,0.033]
[1741333110827,133.38877951,144.5,144.49,0.033]
[1741333114052,18.64964886,144.49,144.47,0.033]
[1741333114252,25.03181043,144.48,144.47,0.033]
[1741333115138,31.95311043,144.48,144.47,0.033]
[1741333119458,31.81094886,144.48,144.47,0.033]
[1741333122744,18.64964886,144.48,144.47,0.033]
[1741333123963,26.9206,144.5,144.47,0.033]
[1741333124162,18.64964886,144.5,144.47,15.61707489]
[1741333124369,18.64964886,144.51,144.47,15.61707489]
[1741333124844,18.64964886,144.51,144.48,14.13253646]
[1741333125559,25.56954886,144.51,144.48,14.13253646]
[1741333125761,18.64964886,144.51,144.48,14.13253646]
[1741333126062,6.9185,144.54,144.49,13.99037489]
[1741333126263,13.1581,144.55,144.51,13.99037489]
[1741333126465,18.64964886,144.54,144.52,13.99037489]
[1741333127745,18.64964886,144.54,144.51,13.99037489]
[1741333127957,25.56824886,144.54,144.5,96.09037489]
[1741333128147,25.56824886,144.54,144.5,82.1]
[1741333129170,25.56824886,144.54,144.5,13.99037489]
[1741333129382,25.56824886,144.54,144.5,325.99037489]
[1741333130649,25.56824886,144.54,144.5,312.0]
[1741333132376,25.56824886,144.54,144.49,13.99037489]
[1741333132576,0.14216157,144.53,144.47,1.6267]
[1741333132755,18.64964886,144.51,144.47,0.033]
[1741333133161,24.88964886,144.51,144.47,0.033]
[1741333133375,23.88964886,144.51,144.47,0.033]
[1741333134064,0.14216157,144.5,144.47,0.033]
[1741333135073,6.9208,144.49,144.47,0.033]
[1741333135271,18.64964886,144.48,144.47,0.033]
[1741333136862,25.57044886,144.49,144.47,0.033]
[1741333140881,18.64964886,144.49,144.47,0.033]
[1741333141483,25.57054886,144.49,144.47,0.033]
[1741333141783,18.64964886,144.49,144.47,0.033]
[1741333142985,25.57064886,144.49,144.47,0.033]
[1741333143768,18.64964886,144.49,144.47,0.033]
[1741333144568,25.57054886,144.49,144.47,0.033]
[1741333144770,18.64964886,144.49,144.47,0.033]
[1741333145169,25.57054886,144.49,144.47,0.033]
[1741333145371,18.79181043,144.51,144.47,0.033]
[1741333145579,25.71171043,144.51,144.47,0.033]
[1741333146472,25.74171043,144.51,144.47,0.033]
[1741333149594,43.04151043,144.51,144.47,0.033]
[1741333149805,18.79181043,144.49,144.47,0.033]
[1741333150514,18.79181043,144.49,144.44,0.033]
[1741333150699,18.79181043,144.47,144.44,0.033]
[1741333150876,25.03181043,144.47,144.44,0.033]
[1741333151704,18.64964886,144.45,144.44,0.033]
[1741333152009,18.79181043,144.45,144.44,0.033]
[1741333152185,18.79181043,144.45,144.43,0.033]
[1741333152369,0.14216157,144.44,144.43,0.033]
[1741333153788,25.71501043,144.44,144.43,0.033]
[1741333156301,107.71501043,144.44,144.43,0.033]
[1741333158316,107.57284886,144.44,144.43,0.033]
[1741333158487,25.57244886,144.45,144.43,0.033]
[1741333159701,88.9225,144.46,144.43,0.033]
[1741333159882,18.64964886,144.45,144.43,0.033]
[1741333162699,6.9208,144.49,144.43,0.17516157]
[1741333162904,82.0,144.5,144.46,13.99037489]
[1741333163083,0.03,144.51,144.47,13.99037489]
[1741333163285,0.03,144.51,144.48,13.99037489]
[1741333163484,25.59974886,144.51,144.48,13.99037489]
[1741333163696,25.59974886,144.51,144.47,13.99037489]
[1741333164407,25.59974886,144.51,144.48,13.99037489]
[1741333164604,18.67964886,144.51,144.48,21.84166624]
[1741333165916,18.67964886,144.51,144.48,333.84166624]
[1741333166424,25.59954886,144.51,144.48,333.84166624]
[1741333166608,25.59954886,144.51,144.48,312.0]
[1741333167318,0.14216157,144.5,144.43,82.133]
[1741333167617,0.14216157,144.5,144.44,0.14216157]
[1741333167838,18.64964886,144.48,144.44,0.14216157]
[1741333168003,18.64964886,144.48,144.44,21.98382781]
[1741333168400,6.9208,144.49,144.45,21.84166624]
[1741333168611,6.9208,144.49,144.46,21.84166624]
[1741333168919,6.9208,144.49,144.45,21.84166624]
[1741333171425,18.64964886,144.5,144.47,21.84166624]
[1741333171616,25.57014886,144.5,144.47,21.84166624]
[1741333172717,0.03,144.51,144.48,21.98382781]
[1741333173419,0.03,144.51,144.48,0.14216157]
[1741333174530,6.9499,144.51,144.47,21.84166624]
[1741333174707,6.9499,144.51,144.46,21.98382781]
[1741333175435,6.9499,144.51,144.47,21.84166624]
[1741333176034,6.9204,144.5,144.46,21.98382781]
[1741333176237,6.9204,144.5,144.46,0.14216157]
[1741333176430,6.9204,144.5,144.45,82.1]
[1741333176624,18.64964886,144.49,144.45,82.1]
[1741333176932,24.88964886,144.49,144.45,82.1]
[1741333177122,24.88964886,144.49,144.43,0.033]
[1741333177438,24.88964886,144.49,144.43,22.01682781]
[1741333178333,18.64964886,144.47,144.43,22.01682781]
[1741333178540,18.64964886,144.47,144.44,21.84166624]
[1741333178717,24.88964886,144.49,144.45,21.98382781]
[1741333178924,31.81054886,144.49,144.45,21.98382781]
[1741333179124,13.1609,144.49,144.45,21.98382781]
[1741333179842,13.1609,144.49,144.45,333.98382781]
[1741333180213,31.81054886,144.49,144.44,21.84166624]
[1741333180412,18.64964886,144.48,144.44,21.84166624]
[1741333181635,25.57114886,144.48,144.44,21.84166624]
[1741333183021,25.57114886,144.48,144.38,177.6571]
[1741333183022,18.64964886,144.46,144.39,82.1]
[1741333183238,0.14216157,144.43,144.38,0.033]
[1741333183440,18.64964886,144.41,144.38,0.033]
[1741333183630,0.14216157,144.4,144.38,0.033]
[1741333186234,7.06736157,144.4,144.38,0.033]
[1741333187127,18.64964886,144.39,144.38,0.033]
[1741333187337,25.57524886,144.39,144.38,0.033]
[1741333187528,25.71741043,144.39,144.38,0.033]
[1741333189846,18.79181043,144.39,144.38,0.033]
[1741333191149,25.71741043,144.39,144.38,0.033]
[1741333191351,107.71741043,144.39,144.38,0.033]
[1741333191850,107.71741043,144.39,144.34,0.033]
[1741333191851,0.14216157,144.38,144.34,0.033]
[1741333192047,18.79181043,144.36,144.34,0.033]
[1741333192737,18.64964886,144.36,144.34,0.033]
[1741333193343,88.24,144.37,144.34,21.92021031]
[1741333194054,82.0,144.37,144.34,21.92021031]
[1741333194261,18.79181043,144.39,144.34,21.92021031]
[1741333195358,18.64964886,144.39,144.35,21.88721031]
[1741333195536,18.64964886,144.39,144.35,333.88721031]
[1741333196145,18.64964886,144.39,144.35,312.0]
[1741333198760,18.64964886,144.4,144.36,22.02937188]
[1741333199138,18.64964886,144.42,144.37,21.88721031]
[1741333199945,25.57414886,144.42,144.36,104.12937188]
[1741333200468,0.14216157,144.41,144.36,82.1]
[1741333201948,0.14216157,144.38,144.34,0.033]
[1741333202155,18.64964886,144.37,144.34,0.033]
[1741333204268,18.64964886,144.35,144.34,0.033]
[1741333204651,6.9266,144.37,144.34,0.033]
[1741333204857,25.57624886,144.37,144.34,0.033]
[1741333205046,25.57624886,144.37,144.34,312.033]
[1741333207865,31.23997101,144.37,144.34,312.033]
[1741333208567,25.57624886,144.37,144.34,312.033]
[1741333208760,6.24,144.38,144.34,312.033]
[1741333209071,6.24,144.38,144.36,21.88721031]
[1741333209271,25.57514886,144.4,144.36,21.88721031]
[1741333209649,6.9255,144.4,144.37,22.02937188]
[1741333209852,25.57444886,144.41,144.38,21.88721031]
[1741333210854,25.57444886,144.41,144.37,22.02937188]
[1741333211850,25.57444886,144.41,144.38,312.0]
[1741333212470,0.14216157,144.4,144.38,312.0]
[1741333212674,0.14216157,144.4,144.35,83.7501]
[1741333212976,18.64964886,144.38,144.35,83.7501]
[1741333213771,7.06686157,144.41,144.35,105.63731031]
[1741333213962,25.71651043,144.41,144.35,105.63731031]
[1741333214163,25.71651043,144.41,144.36,21.88721031]
[1741333215167,25.57434886,144.41,144.37,22.02937188]
[1741333215365,18.64964886,144.4,144.37,21.88721031]
[1741333215567,18.64964886,144.4,144.37,312.0]
[1741333216780,6.9256,144.39,144.37,312.0]
[1741333217092,18.64964886,144.41,144.37,333.88721031]
[1741333217258,25.57444886,144.41,144.37,333.88721031]
[1741333219773,0.03,144.42,144.4,22.02937188]
[1741333219973,0.03,144.42,144.41,22.02937188]
[1741333220386,0.03,144.42,144.41,104.12937188]
[1741333221462,0.03,144.42,144.41,82.24216157]
[1741333221990,0.03,144.42,144.41,104.12937188]
[1741333222702,0.03,144.42,144.41,416.12937188]
[1741333224484,18.64964886,144.46,144.41,416.12937188]
[1741333224682,18.64964886,144.46,144.41,104.12937188]
[1741333225688,6.9228,144.45,144.41,104.12937188]
[1741333227676,18.64964886,144.44,144.41,82.1]
[1741333228166,18.64964886,144.44,144.39,82.1]
[1741333228373,18.64964886,144.44,144.38,333.88721031]